Cogmind - Beta 12 @@@ ROGUE MODE // 2023.03.26 @ 19:27:13 Player: Momo Result: Destroyed by Y-64 Sentinel with Wave Gun Performance ------------- Evolutions (5) 2500 Regions Visited (16) 3200 Robots Destroyed (110) 550 Value Destroyed (4587) 4587 Prototype IDs (31) 620 Alien Tech Used (0) 0 Bonus (3929) 3929 TOTAL SCORE: 15386 Bonus ------- High Alert Combat Kills 757 Follower Combat Kills 2304 Network Hubs Disabled 200 Met Imprinter 300 Was Imprinted 300 Met Warlord at Base 500 MAIN.C Attacked Warlord 500 Built Enhanced Grunts 300 Met R17 at Cetus 500 Friendly Fire -1732 Cogmind --------- Core Integrity 0/1000 Matter 280/300 Energy 203/325 System Corruption 0% Temperature Cool (19) Movement Walking (170) Ox1 Location -4/Proximity Caves Parts ------- > --- POWER (1) -------- Antimatter Reactor > --- PROPULSION (6) --- Experimental Myomer Leg Experimental Myomer Leg Cooled Antigrav System Cooled Impulse Thruster Impulse Thruster Array > --- UTILITY (8) ------ Large Storage Unit Experimental Signal Interpreter Advanced Targeting Computer Experimental Targeting Computer Experimental Core Analyzer Advanced Particle Charger Makeshift Transmission Jammer Makeshift Ablative Armor > --- WEAPON (2) ------- Vortex Rail Vortex Rail > --- INVENTORY (15) --- Vortex Chain Reactor Experimental Coolant Injector High-capacity Matter Pod (200) Experimental Terrain Scan Processor Tactical Coordination Suite Experimental Core Analyzer Experimental Phase Shifter System Purifier Heavy Mass Driver Smartbomb Launcher Vortex Catalyst Activator (10) Peak State ------------ > --- POWER ------------ Quantum Reactor > --- PROPULSION ------- Centrium Heavy Treads Centrium Heavy Treads Centrium Heavy Treads > --- UTILITY ---------- Large Storage Unit Experimental Signal Interpreter Advanced Terrain Scan Processor Advanced Targeting Computer Experimental Core Analyzer Centrium Medium Armor Plating Centrium Medium Armor Plating Experimental Thermal Shield > --- WEAPON ----------- Advanced KE Penetrator Advanced KE Penetrator > --- INVENTORY -------- High-capacity Matter Pod Experimental Signal Interpreter Advanced Terrain Scanner Experimental Terrain Scan Processor Experimental Targeting Computer Tactical Coordination Suite Experimental Armor Integrity Analyzer Advanced Particle Charger Improved Transmission Jammer Z-Drone Bay Advanced KE Penetrator Enhanced Gauss Cannon Enhanced Gauss Cannon Smartbomb Launcher [Rating: 141] Favorites ----------- Power Quantum Reactor Engine Light Ion Engine Power Core Enhanced Nuclear Core Reactor Quantum Reactor Propulsion Centrium Heavy Treads Treads Centrium Heavy Treads Leg Carbon-fiber Leg Wheel Wheel Hover Unit Makeshift Hover Unit Flight Unit Cooled Impulse Thruster Utility Large Storage Unit Device Tactical Coordination Suite Storage Large Storage Unit Processor Experimental Core Analyzer Hackware Advanced Hacking Suite Protection Centrium Medium Armor Plating Weapon Advanced KE Penetrator Energy Gun EM Pulse Gun Energy Cannon Ion Cannon Ballistic Gun Advanced KE Penetrator Ballistic Cannon Enhanced Gauss Cannon Launcher EMP Blaster Slashing Weapon Katana Build | -11 -10 -10 -9 -9 -7 -6 -6 -6 -6 -6 -6 -5 -5 -5 -5 -4 ------- Run | Jun Mat Min Mat Min Zio Pro Fac Ext Cet Arc Hub Fac Upp Upp War Pro Slots Evolved 10 | . . . 2 . . . 6 . . . . 2 . . . . Power . | . . . . . . . . . . . . . . . . . Propulsion 4 | . . . 1 . . . 2 . . . . 1 . . . . Utility 6 | . . . 1 . . . 4 . . . . 1 . . . . Weapon . | . . . . . . . . . . . . . . . . . Parts Attached 151 | 5 1 3 16 2 4 4 12 16 11 3 5 18 4 21 24 2 Power 15 | . . 1 3 . . . 1 3 1 . 2 . . 2 2 . Engine 7 | . . 1 3 . . . . 1 . . . . . 1 1 . Core 3 | . . . . . . . 1 2 . . . . . . . . Reactor 5 | . . . . . . . . . 1 . 2 . . 1 1 . Propulsion 40 | 2 . . 6 2 . 3 6 7 2 . 1 1 . 4 6 . Treads 8 | . . . 2 . . . . 1 2 . . 1 . 2 . . Leg 13 | . . . . . . 2 . 5 . . 1 . . 2 3 . Wheel 8 | 2 . . 3 2 . . 1 . . . . . . . . . Hover 7 | . . . . . . 1 4 1 . . . . . . 1 . Flight 4 | . . . 1 . . . 1 . . . . . . . 2 . Utility 61 | 1 1 2 2 . 3 . 3 2 5 1 2 16 4 8 9 2 Device 35 | . . . . . . . 2 1 3 . 1 13 4 4 7 . Storage 4 | 1 . 1 1 . . . . . 1 . . . . . . . Processor 8 | . 1 . . . 3 . . . 1 . 1 . . . 1 1 Hackware 2 | . . . . . . . 1 . . . . . . . 1 . Protection 12 | . . 1 1 . . . . 1 . 1 . 3 . 4 . 1 Artifact . | . . . . . . . . . . . . . . . . . Weapon 35 | 2 . . 5 . 1 1 2 4 3 2 . 1 . 7 7 . Energy Gun 5 | 1 . . . . . . . . 2 . . . . . 2 . Energy Cannon 1 | . . . 1 . . . . . . . . . . . . . Ballistic Gun 10 | 1 . . 2 . . . 1 1 1 2 . . . 2 . . Ballistic Cannon 11 | . . . 1 . . . . 2 . . . 1 . 4 3 . Launcher 5 | . . . 1 . . 1 . . . . . . . 1 2 . Special Weapon . | . . . . . . . . . . . . . . . . . Impact Weapon . | . . . . . . . . . . . . . . . . . Slashing Weapon 3 | . . . . . 1 . 1 1 . . . . . . . . Piercing Weapon . | . . . . . . . . . . . . . . . . . Special Melee Weapon . | . . . . . . . . . . . . . . . . . Unidentified Prototypes 26 | . . . 2 . 3 . 2 . 5 1 2 1 . . 10 . Corrupted Parts 2 | . . . . . . . . . . 2 . . . . . . System Corruption 8 | . . . . . . . . . . 8 . . . . . . Parts Lost 36 | . 1 . 4 3 . 3 3 7 1 . . . . 14 . . Power 4 | . . . 1 . . . . 2 . . . . . 1 . . Propulsion 16 | . . . 2 1 . 3 2 4 . . . . . 4 . . Utility 9 | . 1 . . 2 . . . . . . . . . 6 . . Weapon 7 | . . . 1 . . . 1 1 1 . . . . 3 . . Highest Loss Streak 7 | . 1 . 2 1 . 3 2 3 1 . . . . 7 . . To Critical Strikes 3 | . . . . . . . . 1 . . . . . 2 . . Average Slot Usage (%) 84 | . 82 96 89 93 98 98 77 91 95 86 86 81 82 62 81 94 Engine 4 | . . 12 8 11 11 11 1 1 3 . . . . 1 3 . Reactor 1 | . . . . . . . . . 2 6 6 5 5 . . 5 Treads 6 | . . . 10 . . . . 2 3 13 13 16 17 6 3 . Leg 5 | . . . . . . 12 6 17 25 6 6 . . 3 17 11 Wheel 7 | . 28 28 15 31 33 12 4 1 . . . . . . . . Hover 1 | . . . . . . 6 15 3 . . . . . . 1 5 Device 7 | . . . . . . . 13 13 15 14 13 9 9 7 14 18 Storage 7 | . 14 14 11 11 11 11 6 6 6 6 6 5 5 5 5 5 Processor 17 | . 11 . . . 20 22 13 13 18 20 25 23 23 23 18 20 Protection 4 | . . 12 17 17 . . . 5 . 5 . 6 6 5 . . Energy Gun 2 | . 14 14 . . . . . . 5 5 . . . . 6 11 Ballistic Gun 6 | . 14 14 16 11 11 3 2 2 1 6 13 9 5 1 . . Ballistic Cannon 1 | . . . 2 . . . . 3 . . . . 5 3 . . Launcher 1 | . . . 1 11 3 7 . . . . . . . . . . Slashing Weapon 2 | . . . . . 7 11 4 5 4 . . . . . . . Naked Turns . | . . . . . . . . . . . . . . . . . Heaviest Build 75 | 8 8 19 41 36 30 32 37 52 61 66 66 73 73 67 75 71 Greatest Support 240 | 32 32 32 40 30 30 30 41 80 160 160 160 240 240 240 108 50 Greatest Overweight (x) 8 | . . . 2 1 . 3 3 4 . . . . . 8 1 1 Average Overweight (x) . | . . . . . . . . . . . . . . 1 . 1 Largest Inventory Capacity 15 | 8 8 10 15 15 15 15 15 15 15 15 15 15 15 15 15 15 Average Capacity 14 | 7 8 8 12 15 15 15 15 15 15 15 15 15 15 15 15 15 Most Carried 15 | 2 2 10 13 13 15 15 15 15 15 15 15 15 15 15 15 15 Average Carried 13 | . 2 7 9 11 14 14 14 13 14 15 14 14 15 12 14 15 Final Capacity 15 | 8 8 10 15 15 15 15 15 15 15 15 15 15 15 15 15 15 Final Carried 15 | 2 2 10 13 11 15 15 14 15 15 15 15 15 15 15 15 15 Class Distribution -------------------- 52% | Scavenger-Mutant 37% | Mutant 9% | Commander-Mutant Dominant Class ---------------- Mutant | -10/Materials Mutant | -10/Mines Mutant | -9/Materials Scavenger-Mutant | -9/Mines Scavenger-Mutant | -7/Zion Mutant | -6/Proximity Caves Mutant | -6/Factory Scavenger-Mutant | -6/Extension Scavenger-Mutant | -6/Cetus Scavenger-Mutant | -6/Archives Scavenger-Mutant | -6/Hub_04(d) Scavenger-Mutant | -5/Factory Scavenger-Mutant | -5/Upper Caves Mutant | -5/Upper Caves Commander-Mutant | -5/Warlord Mutant | -4/Proximity Caves Resources | -11 -10 -10 -9 -9 -7 -6 -6 -6 -6 -6 -6 -5 -5 -5 -5 -4 ----------- Run | Jun Mat Min Mat Min Zio Pro Fac Ext Cet Arc Hub Fac Upp Upp War Pro Matter Collected 4235 | 244 . 76 419 52 46 138 122 393 126 58 78 930 115 1156 282 . Remotely . | . . . . . . . . . . . . . . . . . Salvage Created 4612 | . . 56 423 91 . 436 241 640 65 69 55 1419 101 835 . 181 Parts 224 | . . 3 33 5 . 16 15 22 3 4 5 72 5 33 . 8 Haulers Intercepted 1 | . . . . . . . . . . . . 1 . . . . Recyclers Shooed 1 | . . . 1 . . . . . . . . . . . . . Parts Field Recycled . | . . . . . . . . . . . . . . . . . Retrieved Matter . | . . . . . . . . . . . . . . . . . Parts Self-Destructed 51 | . . . . . 1 9 . . . . . . 5 32 . 4 Prevented 6 | . . . . . . 5 . . . . . . . 1 . . Kills | -11 -10 -10 -9 -9 -7 -6 -6 -6 -6 -6 -6 -5 -5 -5 -5 -4 ------- Run | Jun Mat Min Mat Min Zio Pro Fac Ext Cet Arc Hub Fac Upp Upp War Pro Combat Hostiles Destroyed 93 | . . 3 10 5 . 8 6 7 1 1 1 24 4 17 . 6 Melee 3 | . . . . . . . 3 . . . . . . . . . Guns 52 | . . 3 5 3 . 2 3 2 1 1 1 21 1 6 . 3 Cannons 21 | . . . 3 . . . . 5 . . . 3 3 7 . . AOE 16 | . . . 2 2 . 5 . . . . . . . 4 . 3 Classes Destroyed 18 | . . 1 5 1 . 1 . 1 . . 1 7 . 1 . . Worker 5 | . . . 4 . . . . . . . 1 . . . . . Builder 2 | . . . 2 . . . . . . . . . . . . . Tunneler 1 | . . . . . . . . . . . . 1 . . . . Hauler 1 | . . . . . . . . . . . . 1 . . . . Recycler 1 | . . . . . . . . 1 . . . . . . . . Watcher 2 | . . . 1 . . . . . 1 . . . . . . . Swarmer 26 | . . 3 3 3 . . 3 . . . . 6 3 4 . 1 Grunt 27 | . . . 4 . . 7 3 3 . . . 6 . 3 . 1 Brawler 3 | . . . . . . 1 . . . . . 1 . 1 . . Duelist 4 | . . . . . . . . . . . . 1 . 3 . . Sentry 12 | . . . 3 . . . . 4 . 1 . 1 1 2 . . Specialist 3 | . . . . . . . . . . . 1 2 . . . . Hunter 7 | . . . . . . . . . . . . 2 . 3 . 2 Programmer 6 | . . . . . . . . . . . . 4 . . . 2 Heavy 1 | . . . . . . . . . . . . 1 . . . . Cetus Guard 1 | . . . . . . . . . 1 . . . . . . . Assembled 2 | . . . . 2 . . . . . . . . . . . . Thug 5 | . . . . . . 1 . 1 . . . . . 3 . . Savage 1 | . . . . . . . . 1 . . . . . . . . Fireman 1 | . . . . . . . . . . . . 1 . . . . Mutant 1 | . . . . . . . . . . . . . . 1 . . Best Kill Streak 9 | . . 3 4 4 . 3 3 2 1 1 2 9 3 5 . 4 Combat Bots Only 9 | . . 3 4 3 . 3 3 2 1 1 1 9 3 5 . 4 Max Kills in Single Turn 3 | . . 1 1 1 . 2 1 1 1 1 1 2 1 3 . 1 Gunslinging 1 | . . . . . . . . . . . . 1 . . . . Exploded 3 | . . . 1 1 . 2 . . . . . . . 3 . 1 Melee 1 | . . . . . . . 1 . . . . . . . . . Uniques/NPCs Destroyed . | . . . . . . . . . . . . . . . . . Combat | -11 -10 -10 -9 -9 -7 -6 -6 -6 -6 -6 -6 -5 -5 -5 -5 -4 -------- Run | Jun Mat Min Mat Min Zio Pro Fac Ext Cet Arc Hub Fac Upp Upp War Pro Damage Taken 10131 | . 59 70 797 254 . 190 435 1279 135 120 172 1974 203 3785 243 415 Core 1573 | . 36 23 198 13 . 5 53 185 . . 37 191 . 585 123 124 Absorbed by Shields 68 | . . . . . . . . 9 59 . . . . . . . Reduced by Siege Mode 610 | . . . . . . . . . . . . 244 20 346 . . Redirected to Shielding 150 | . . . . . . . . . . . . . . 150 . . Regen/Repaired (Parts) 205 | . . . . . . . . . . . . . . . 205 . Core Remaining (%) 72 | 100 . 76 . . . 46 . . . . 67 . . . . . Volleys Fired 437 | . . 5 50 17 . 12 9 39 26 12 11 112 22 97 8 17 Largest 2 | . . 2 2 1 . 1 1 1 1 2 2 2 2 2 2 2 Hottest 115 | . . 60 80 33 . 39 23 57 81 115 70 92 92 92 90 90 Shots Fired 572 | . . 10 90 17 . 12 9 39 26 20 24 166 24 108 9 18 Gun 392 | . . 10 56 15 . 5 9 7 24 20 24 150 3 48 3 18 Cannon 164 | . . . 29 . . . . 32 2 . . 16 21 58 6 . Launcher 16 | . . . 5 2 . 7 . . . . . . . 2 . . Special . | . . . . . . . . . . . . . . . . . Kinetic 490 | . . 5 77 15 . 5 9 39 2 12 24 166 24 106 6 . Thermal 37 | . . . 5 . . . . . 24 8 . . . . . . Explosive 9 | . . . . . . 7 . . . . . . . 2 . . Electromagnetic 15 | . . 5 8 2 . . . . . . . . . . . . Entropic 21 | . . . . . . . . . . . . . . . 3 18 Robot Hit Streak 37 | . . 4 12 4 . 9 8 11 10 23 24 37 11 15 3 9 Robot Miss Streak 5 | . . 1 5 3 . 2 2 5 2 . 1 2 . 2 . 1 Penetration Max 1 | . . . . . . . . . . . 1 1 . 1 1 . Secondary Targets 3 | . . . . . . . . . . . . 2 . 1 . . Max Gunslinging Chain 1 | . . . . . . . . . . . . 1 . 1 . . Shots Hit Robots 400 | . . 7 65 9 . 8 18 30 22 19 8 111 10 76 2 15 Core Hits 223 | . . 3 43 7 . 19 12 25 12 4 4 48 6 30 1 9 Critical Kills 22 | . . . . . . 1 . 6 1 . 1 9 . 4 . . Critical Parts Destroyed 23 | . . . 1 . . . . 4 . 2 1 8 . 3 . 4 Critical Strikes 62 | . . . 1 . . 1 . 15 3 2 2 19 1 14 . 4 Burn 2 | . . . . . . . . . 2 . . . . . . . Destroy 44 | . . . 1 . . 1 . 13 1 2 2 17 . 7 . . Blast 10 | . . . . . . . . . . . . 2 1 7 . . Sever 2 | . . . . . . . . 2 . . . . . . . . Detonate 4 | . . . . . . . . . . . . . . . . 4 Melee Attacks 27 | . . . . . 1 . 14 12 . . . . . . . . Impact . | . . . . . . . . . . . . . . . . . Slashing 27 | . . . . . 1 . 14 12 . . . . . . . . Piercing . | . . . . . . . . . . . . . . . . . Sneak Attacks 1 | . . . . . . . 1 . . . . . . . . . Combat Hostiles 1 | . . . . . . . 1 . . . . . . . . . Follow-up Attacks . | . . . . . . . . . . . . . . . . . Damage Inflicted 12979 | . . 66 1092 244 . 1053 478 973 531 479 287 3149 313 2860 145 1309 Guns 6776 | . . 66 428 133 . 77 128 162 479 479 287 2595 77 959 140 766 Cannons 3368 | . . . 592 . . . . 607 52 . . 374 236 1507 . . Explosions 2276 | . . . 72 111 . 976 . . . . . 180 . 394 . 543 Melee 554 | . . . . . . . 350 204 . . . . . . . . Ramming 5 | . . . . . . . . . . . . . . . 5 . Kinetic 8415 | . . 35 906 133 . 77 128 769 52 280 287 2969 313 2466 . . Thermal 1338 | . . . 94 23 . . . . 479 199 . . . . . 543 Explosive 1550 | . . . . . . 976 . . . . . 180 . 394 . . Electromagnetic 211 | . . 31 92 88 . . . . . . . . . . . . Impact . | . . . . . . . . . . . . . . . . . Slashing 554 | . . . . . . . 350 204 . . . . . . . . Piercing . | . . . . . . . . . . . . . . . . . Entropic 906 | . . . . . . . . . . . . . . . 140 766 Highest Corruption 8 | . . . 1 1 1 . . . . 8 8 1 1 1 1 . Average Corruption 1 | . . . 1 1 1 . . . . 4 8 1 1 1 1 . Corruption Purged . | . . . . . . . . . . . . . . . . . Corruption Blocked 16 | . . . . . . . . . . . . 16 . . . . Effects 30 | . . . 4 . . . . . . . 11 2 3 10 . . Message Errors 6 | . . . . . . . . . . . 2 . 1 3 . . Matter Fused 9 | . . . 1 . . . . . . . 3 2 . 3 . . Heat Flow Errors 3 | . . . . . . . . . . . 1 . . 2 . . Energy Discharges 4 | . . . 1 . . . . . . . 2 . . 1 . . Parts Rejected 2 | . . . 2 . . . . . . . . . . . . . Data Loss (minor) 1 | . . . . . . . . . . . 1 . . . . . Misfires 2 | . . . . . . . . . . . 2 . . . . . Alerts 2 | . . . . . . . . . . . . . 1 1 . . Weapon Failures 1 | . . . . . . . . . . . . . 1 . . . Overload Shots . | . . . . . . . . . . . . . . . . . Overflow Damage 248 | . . . . . . 25 . . . . . 68 . 102 . 53 Projectiles 87 | . . . . . . . . . . . . . . 87 . . Explosions 161 | . . . . . . 25 . . . . . 68 . 15 . 53 Melee . | . . . . . . . . . . . . . . . . . Knockbacks 32 | . . . 14 . . . . 5 . . . 2 . 11 . . Impact . | . . . . . . . . . . . . . . . . . Kinetic 28 | . . . 14 . . . . 5 . . . 2 . 7 . . Secondary 4 | . . . . . . . . . . . . . . 4 . . Self-Inflicted Damage 414 | . . . 72 59 . 52 . . . . 71 75 . . . 85 Shots 10 | . . . 3 3 . 1 . . . . 1 1 . . . 1 Rammed . | . . . . . . . . . . . . . . . . . Targets Rammed 1 | . . . . . . . . . . . . . . . 1 . Kicked 1 | . . . . . . . . . . . . . . . 1 . Crushed . | . . . . . . . . . . . . . . . . . Highest Temperature 358 | . . 10 119 10 . 15 . 52 236 234 224 48 45 358 23 10 Average Temperature 68 | . . 7 34 6 . 7 . 19 102 101 85 12 17 158 13 6 Received Heat Transfer 2174 | . 30 . 261 . . 63 117 427 4 9 . 261 27 882 75 18 Effects 3 | . . . . . . . . . . . . . . 3 . . Energy Bleed 3 | . . . . . . . . . . . . . . 3 . . Siege Activations 6 | . . . . . . . . . . . . 4 1 1 . . Total Turns 236 | . . . . . . . . . . . . 165 16 55 . . Longest Duration 108 | . . . . . . . . . . . . 108 16 55 . . Robots Corrupted . | . . . . . . . . . . . . . . . . . Combat Hostiles . | . . . . . . . . . . . . . . . . . Parts Fried 1 | . . . . . . . . . . . . . . 1 . . Impact Corruptions 1 | . . . . . . . . . . . . . . 1 . . Robots Melted . | . . . . . . . . . . . . . . . . . Combat Hostiles . | . . . . . . . . . . . . . . . . . Parts Melted 3 | . . . 1 . . 1 . 1 . . . . . . . . Heat Transferred 1682 | . . . 148 50 . . . . 925 259 . . . . . 300 Parts Sabotaged 4 | . . . . . . . . . . . . . . 4 . . Parts Stolen . | . . . . . . . . . . . . . . . . . Parts Stripped . | . . . . . . . . . . . . . . . . . Power Chain Reactions 3 | . . . 2 1 . . . . . . . . . . . . Missiles Intercepted . | . . . . . . . . . . . . . . . . . Alert | -11 -10 -10 -9 -9 -7 -6 -6 -6 -6 -6 -6 -5 -5 -5 -5 -4 ------- Run | Jun Mat Min Mat Min Zio Pro Fac Ext Cet Arc Hub Fac Upp Upp War Pro Peak Influence 1330 | . 23 80 287 158 . . 131 303 447 391 437 1330 . . . . Initial 213 | . . 4 . 95 . . 46 . 132 178 136 213 . . . . Average 316 | . 6 41 195 152 . . 87 137 285 332 260 715 . . . . Maximum Alert Level 4 | . . . 1 . . . . 1 2 1 2 4 . . . . Low Security (%) 48 | 100 100 100 41 100 . . 100 69 34 8 12 . . . . . Level 1 31 | . . . 58 . . . . 30 38 91 85 36 . . . . Level 2 6 | . . . . . . . . . 26 . 1 15 . . . . Level 3 6 | . . . . . . . . . . . . 20 . . . . Level 4 8 | . . . . . . . . . . . . 27 . . . . Level 5 . | . . . . . . . . . . . . . . . . . High Security . | . . . . . . . . . . . . . . . . . Max Security . | . . . . . . . . . . . . . . . . . Squads Dispatched 14 | . . . 3 . . . 1 . 1 . 1 7 . 1 . . Investigation 3 | . . . 1 . . . 1 . 1 . . . . . . . Extermination 3 | . . . . . . . . . . . . 3 . . . . Reinforcement 6 | . . . 2 . . . . . . . 1 3 . . . . Assault 2 | . . . . . . . . . . . . 1 . 1 . . Garrison . | . . . . . . . . . . . . . . . . . Intercept . | . . . . . . . . . . . . . . . . . Searches Triggered . | . . . . . . . . . . . . . . . . . Construction Impeded . | . . . . . . . . . . . . . . . . . Haulers Reinforced . | . . . . . . . . . . . . . . . . . Active Scanning Responses . | . . . . . . . . . . . . . . . . . Cargo Convoy Interrupts . | . . . . . . . . . . . . . . . . . Stealth | -11 -10 -10 -9 -9 -7 -6 -6 -6 -6 -6 -6 -5 -5 -5 -5 -4 --------- Run | Jun Mat Min Mat Min Zio Pro Fac Ext Cet Arc Hub Fac Upp Upp War Pro Distress Signals 10 | . 1 . 3 1 . . . 3 1 . 1 . . . . . Communications Jammed 1 | . . . . . . . . . . . . 1 . . . . Distress Signals 1 | . . . . . . . . . . . . 1 . . . . Times Spotted 203 | . 4 3 23 4 . 11 6 23 13 3 7 42 4 23 30 7 Peak Tracking Total 11 | . 4 3 6 2 . 4 3 3 5 1 3 6 3 10 11 3 Tactical Retreats 9 | . . . 3 . . . . 4 . . . 2 . . . . Traps | -11 -10 -10 -9 -9 -7 -6 -6 -6 -6 -6 -6 -5 -5 -5 -5 -4 ------- Run | Jun Mat Min Mat Min Zio Pro Fac Ext Cet Arc Hub Fac Upp Upp War Pro Traps Triggered 1 | . . 1 . . . . . . . . . . . . . . Indirectly . | . . . . . . . . . . . . . . . . . Trap Hack Attempts . | . . . . . . . . . . . . . . . . . Triggered . | . . . . . . . . . . . . . . . . . Disarmed 6 | . . . 6 . . . . . . . . . . . . . Reprogrammed . | . . . . . . . . . . . . . . . . . Reused . | . . . . . . . . . . . . . . . . . Traps Extracted . | . . . . . . . . . . . . . . . . . Installed . | . . . . . . . . . . . . . . . . . Triggered 9 | . . . . . . . . . . . . . . . 9 . Machines | -11 -10 -10 -9 -9 -7 -6 -6 -6 -6 -6 -6 -5 -5 -5 -5 -4 ---------- Run | Jun Mat Min Mat Min Zio Pro Fac Ext Cet Arc Hub Fac Upp Upp War Pro Machines Disabled 23 | . . . . . . . . 4 . 3 7 6 . 2 1 . Max in Single Turn 4 | . . . . . . . . 2 . 1 4 4 . 1 1 . Network Hub 1 | . . . . . . . . . . . 1 . . . . . Energy Cycler 1 | . . . . . . . . 1 . . . . . . . . Machines Repaired . | . . . . . . . . . . . . . . . . . Machines Sabotaged . | . . . . . . . . . . . . . . . . . Overloaded Fab Kills . | . . . . . . . . . . . . . . . . . Hacking | -11 -10 -10 -9 -9 -7 -6 -6 -6 -6 -6 -6 -5 -5 -5 -5 -4 --------- Run | Jun Mat Min Mat Min Zio Pro Fac Ext Cet Arc Hub Fac Upp Upp War Pro Machines Accessed 16 | . 2 2 3 . . . 2 1 1 . . 2 1 . 2 . Terminals 9 | . 2 1 3 . . . 1 1 1 . . . . . . . Fabricators 1 | . . . . . . . 1 . . . . . . . . . Repair Stations 1 | . . . . . . . . . . . . 1 . . . . Recycling Units . | . . . . . . . . . . . . . . . . . Scanalyzers . | . . . . . . . . . . . . . . . . . Garrison Access 1 | . . . . . . . . . . . . 1 . . . . Total Hacks 33 | . 5 5 5 . . . 4 2 3 . . 5 1 . 3 . Successful 16 | . 3 3 1 . . . 3 1 . . . 1 1 . 3 . Failed 17 | . 2 2 4 . . . 1 1 3 . . 4 . . . . Catastrophic 7 | . . 1 2 . . . . . 1 . . 3 . . . . Database Lockouts . | . . . . . . . . . . . . . . . . . Manual 46 | . 1 4 5 . . . 5 4 1 . 7 19 . . . . Terminals 20 | . 5 4 5 . . . 1 2 3 . . . . . . . Fabricators 3 | . . . . . . . 3 . . . . . . . . . Repair Stations 3 | . . . . . . . . . . . . 3 . . . . Recycling Units . | . . . . . . . . . . . . . . . . . Scanalyzers . | . . . . . . . . . . . . . . . . . Garrison Access 2 | . . . . . . . . . . . . 2 . . . . Terminal Hacks 13 | . 3 3 1 . . . 1 1 . . . . 1 . 3 . Record 2 | . . . . . . . . . . . . . . . 2 . Prototype ID Bank 2 | . . 2 . . . . . . . . . . . . . . Open Door 5 | . . 1 . . . . 1 1 . . . . 1 . 1 . Branch Access Points 1 | . 1 . . . . . . . . . . . . . . . Alert Level 1 | . 1 . . . . . . . . . . . . . . . Disarm Traps 1 | . . . 1 . . . . . . . . . . . . . Registered Components 1 | . 1 . . . . . . . . . . . . . . . Fabricator Hacks 2 | . . . . . . . 2 . . . . . . . . . Load Schematic 1 | . . . . . . . 1 . . . . . . . . . Build 1 | . . . . . . . 1 . . . . . . . . . Repair Station Hacks 1 | . . . . . . . . . . . . 1 . . . . Scan Component 1 | . . . . . . . . . . . . 1 . . . . Recycling Unit Hacks . | . . . . . . . . . . . . . . . . . Scanalyzer . | . . . . . . . . . . . . . . . . . Garrison Access Hacks . | . . . . . . . . . . . . . . . . . Unauthorized Hacks . | . . . . . . . . . . . . . . . . . Terminals . | . . . . . . . . . . . . . . . . . Fabricators . | . . . . . . . . . . . . . . . . . Repair Stations . | . . . . . . . . . . . . . . . . . Recycling Units . | . . . . . . . . . . . . . . . . . Scanalyzers . | . . . . . . . . . . . . . . . . . Garrison Access . | . . . . . . . . . . . . . . . . . Data Cores Recovered . | . . . . . . . . . . . . . . . . . Used . | . . . . . . . . . . . . . . . . . Hacking Detections 11 | . 2 1 3 . . . 1 1 2 . . 1 . . . . Full Trace Events 3 | . . . 1 . . . 1 . 1 . . . . . . . Feedback Events 1 | . . . 1 . . . . . . . . . . . . . Corruption 1 | . . . 1 . . . . . . . . . . . . . Feedback Blocked . | . . . . . . . . . . . . . . . . . Robot Schematics Acquired 3 | . . . . . 3 . . . . . . . . . . . Robots Built . | . . . . . . . . . . . . . . . . . Authchips . | . . . . . . . . . . . . . . . . . Time . | . . . . . . . . . . . . . . . . . Total Robot Build Rating . | . . . . . . . . . . . . . . . . . Part Schematics Acquired 16 | . . . . . 16 . . . . . . . . . . . Parts Built 2 | . . . . . . . 2 . . . . . . . . . Authchips . | . . . . . . . . . . . . . . . . . Time 47 | . . . . . . . 47 . . . . . . . . . Total Part Build Rating 10 | . . . . . . . 10 . . . . . . . . . Parts Repaired . | . . . . . . . . . . . . . . . . . Time . | . . . . . . . . . . . . . . . . . Parts Recycled . | . . . . . . . . . . . . . . . . . Recycled Matter . | . . . . . . . . . . . . . . . . . Retrieved Matter . | . . . . . . . . . . . . . . . . . Retrieved Components . | . . . . . . . . . . . . . . . . . Parts Scanalyzed . | . . . . . . . . . . . . . . . . . Part Schematics Acquired . | . . . . . . . . . . . . . . . . . Parts Damaged . | . . . . . . . . . . . . . . . . . Bothacking | -11 -10 -10 -9 -9 -7 -6 -6 -6 -6 -6 -6 -5 -5 -5 -5 -4 ------------ Run | Jun Mat Min Mat Min Zio Pro Fac Ext Cet Arc Hub Fac Upp Upp War Pro Used RIF Installer . | . . . . . . . . . . . . . . . . . Robots Hacked . | . . . . . . . . . . . . . . . . . Non-combat . | . . . . . . . . . . . . . . . . . Combat . | . . . . . . . . . . . . . . . . . Robot Hacks Applied . | . . . . . . . . . . . . . . . . . Relay Couplers Released . | . . . . . . . . . . . . . . . . . Fabnet Peak Effective % . | . . . . . . . . . . . . . . . . . Robots Rewired 20 | . . . . . . . . 10 . . . . . 5 5 . Allies Hacked . | . . . . . . . . . . . . . . . . . Hacks Repelled . | . . . . . . . . . . . . . . . . . Allies | -11 -10 -10 -9 -9 -7 -6 -6 -6 -6 -6 -6 -5 -5 -5 -5 -4 -------- Run | Jun Mat Min Mat Min Zio Pro Fac Ext Cet Arc Hub Fac Upp Upp War Pro Total Allies 49 | . . . . . 6 . . 16 5 . 2 10 . 5 5 . Largest Group 9 | . . . . . 6 5 2 9 8 2 4 7 . 4 5 . Highest-Rated Group 568 | . . . . . 213 174 76 401 568 192 355 373 . 124 210 . Highest-Rated Ally 159 | . . . . . 39 39 38 159 159 96 96 96 . 31 46 . Zionite Dispatches 9 | . . . . . . . . 2 . . 2 5 . . . . Heavy 1 | . . . . . . . . . . . 1 . . . . . Light 1 | . . . . . . . . . . . . 1 . . . . Recon 2 | . . . . . . . . 1 . . 1 . . . . . Fire 1 | . . . . . . . . . . . . 1 . . . . Hacker 1 | . . . . . . . . . . . . 1 . . . . Thermal Resupply 1 | . . . . . . . . . . . . 1 . . . . Explosive Resupply 2 | . . . . . . . . 1 . . . 1 . . . . Total Orders 36 | . . . . . . . . 1 3 . 2 18 6 3 3 . STAY 5 | . . . . . . . . 1 1 . 2 . . . 1 . EXPLORE 22 | . . . . . . . . . 2 . . 12 4 2 2 . RETURN 9 | . . . . . . . . . . . . 6 2 1 . . Ally Attacks 342 | . . . . . . 24 . 95 81 19 7 82 . 19 15 . Total Damage 9732 | . . . . . . 652 . 1891 2746 842 340 2296 . 353 612 . Kills 58 | . . . . . . 3 . 10 16 3 4 20 . 2 . . Allies Corrupted 3 | . . . . . . 2 . . . . . 1 . . . . Allies Melted . | . . . . . . . . . . . . . . . . . Intel | -11 -10 -10 -9 -9 -7 -6 -6 -6 -6 -6 -6 -5 -5 -5 -5 -4 ------- Run | Jun Mat Min Mat Min Zio Pro Fac Ext Cet Arc Hub Fac Upp Upp War Pro Robot Analysis Total . | . . . . . . . . . . . . . . . . . Derelict Logs Recovered 6 | . . 2 . . . 1 . . . . . . 2 1 . . Drone Launches 32 | . . . . . . . . . 4 . . 12 4 2 10 . Drone Recoveries 22 | . . . . . . . . . 2 . . 11 4 2 3 . Zionite Intel Received 2 | . . . . . . . 1 . . . . 1 . . . . Main Access 1 | . . . . . . . 1 . . . . . . . . . Depthwide Sectors/-1 1 | . . . . . . . . . . . . 1 . . . . Exploration | -11 -10 -10 -9 -9 -7 -6 -6 -6 -6 -6 -6 -5 -5 -5 -5 -4 ------------- Run | Jun Mat Min Mat Min Zio Pro Fac Ext Cet Arc Hub Fac Upp Upp War Pro Turns Passed 9724 | 48 50 739 479 180 997 464 419 912 316 117 272 1510 581 1696 842 102 Spaces Moved 6070 | 41 49 687 259 153 1113 336 387 478 161 50 143 716 326 581 555 35 Core 4 | 3 . . . . . . . . . . . . . 1 . . Treads 1556 | . . . 69 . . . . 27 45 50 143 716 326 180 . . Legs 1646 | . . . . . . 141 33 366 116 . . . . 400 555 35 Wheels 2548 | 38 49 687 190 153 1113 191 84 43 . . . . . . . . Hover 316 | . . . . . . 4 270 42 . . . . . . . . Flight . | . . . . . . . . . . . . . . . . . Fastest Speed 50 | 50 100 100 95 80 80 80 55 60 120 160 160 160 160 120 100 170 Average Speed 130 | 96 100 100 121 94 80 128 87 143 131 160 160 160 160 234 127 170 Slowest Speed 450 | 100 100 100 240 95 80 260 190 320 160 160 160 160 160 450 190 170 Overloaded Moves . | . . . . . . . . . . . . . . . . . Propulsion Burnouts . | . . . . . . . . . . . . . . . . . Robots Hopped . | . . . . . . . . . . . . . . . . . Cave-ins Triggered . | . . . . . . . . . . . . . . . . . Exploration Rate (%) 49 | 4 18 99 28 19 88 52 11 75 58 75 17 52 83 68 90 10 Regions Visited 16 Branch Regions 12 Pre-discovered Areas 8 | . . 1 . . 1 1 . . . . . 4 . 1 . . Known Exits Taken 11 | . 1 . . . 1 1 1 1 1 1 1 1 1 1 . . Unknown Exits Taken 5 | 1 . 1 1 1 . . . . . . . . . . 1 . Scrap Searched 17 | . . 2 . . 5 3 . . . . . . 2 5 . . Spaces Dug 236 | . . . . . . 15 1 . . . 166 24 14 16 . . Terrain Destroyed 555 | . . . 12 3 . 84 1 15 . 3 168 102 16 88 . 63 Melee 1 | . . . . . . . 1 . . . . . . . . . Projectile 186 | . . . . . . . . 10 . 3 14 61 16 52 . 30 AOE 368 | . . . 12 3 . 84 . 5 . . 154 41 . 36 . 33 Terrain Rammed . | . . . . . . . . . . . . . . . . . Walls Destroyed . | . . . . . . . . . . . . . . . . . Machines Disabled . | . . . . . . . . . . . . . . . . . Actions | -11 -10 -10 -9 -9 -7 -6 -6 -6 -6 -6 -6 -5 -5 -5 -5 -4 --------- Run | Jun Mat Min Mat Min Zio Pro Fac Ext Cet Arc Hub Fac Upp Upp War Pro Total 7286 | 47 49 732 335 171 1220 354 436 645 246 66 164 914 360 803 685 59 Wait 266 | . . 21 1 . 84 . 2 44 19 2 1 43 8 23 13 5 Move 6055 | 40 48 686 258 152 1112 335 386 477 160 49 142 715 325 580 555 35 Hop . | . . . . . . . . . . . . . . . . . Pick Up 86 | 2 . 12 4 . 11 2 4 11 10 . 1 12 . 10 7 . Fast Attach 70 | 5 1 2 10 . 3 2 7 9 5 . 3 2 . 8 13 . Attach 44 | . . . 3 2 1 1 5 5 4 . . 2 . 12 9 . Detach 15 | . . . 1 . . . 2 . 3 . . . . 4 5 . Swap 37 | . . 1 3 . . 1 . 2 2 3 2 14 4 1 2 2 Drop 95 | . . 5 5 . 8 1 7 7 17 . 4 14 1 5 21 . Fire 437 | . . 5 50 17 . 12 9 39 26 12 11 112 22 97 8 17 Melee 27 | . . . . . 1 . 14 12 . . . . . . . . Ram . | . . . . . . . . . . . . . . . . . Kick . | . . . . . . . . . . . . . . . . . Crush . | . . . . . . . . . . . . . . . . . Escape Stasis . | . . . . . . . . . . . . . . . . . Rewire 154 | . . . . . . . . 39 . . . . . 63 52 . Trap . | . . . . . . . . . . . . . . . . . Miscellaneous . | . . . . . . . . . . . . . . . . . Route ------- -11/Junkyard -10/Materials -10/Mines (discovered 2 exits: *Mat x2) -9/Materials -9/Mines -7/Zion -6/Proximity Caves -6/Factory (discovered 5 exits: Fac x4 / *Ext) -6/Extension (discovered 3 exits: *Fac x2 / *Cet) -6/Cetus (discovered 2 exits: *Fac / *Arc) -6/Archives (discovered 2 exits: *Hub x2) -6/Hub_04(d) -5/Factory (discovered 3 exits: *Fac x2 / *Upp) -5/Upper Caves -5/Upper Caves (discovered 2 exits: *Fac / *War) -5/Warlord -4/Proximity Caves History --------- Turn | Location | Event 21 | -11/Junkyard | Discovered new exit (range 15) 49 | -11/Junkyard | Entered Materials 64 | -10/Materials | Identified exit to Mines 99 | -10/Materials | Entered Mines 187 | -10/Mines | Met a Derelict who couldn't figure out how to use a Trap Extractor 220 | -10/Mines | Discovered new exit (range 8) 301 | -10/Mines | Build established: Mutant 365 | -10/Mines | Learned location of Zion (-7) 578 | -10/Mines | Learned Materials trap positions 593 | -10/Mines | Discovered new exit (range 14) 838 | -10/Mines | Entered Materials 838 | -9/Materials | Evolved 2 slots: Propulsion x1, Utility x1 839 | -9/Materials | Loaded intel: 29 trap records 927 | -9/Materials | Discovered new exit (range 16) 1317 | -9/Materials | Entered Mines 1362 | -9/Mines | Assembled infested the area 1420 | -9/Mines | Core integrity fell below 50% 1478 | -9/Mines | A Derelict revealed a hidden shortcut to a safe place 1497 | -9/Mines | Entered Zion 1533 | -7/Zion | Discovered new exit (range 12) 1571 | -7/Zion | Found Prototype Processor 1571 | -7/Zion | Identified Exp. Targeting Computer 1575 | -7/Zion | Found Prototype Processor 1575 | -7/Zion | Identified Exp. Signal Interpreter 1577 | -7/Zion | Found Prototype Processor 1577 | -7/Zion | Identified Exp. Core Analyzer 1580 | -7/Zion | Found Exp. Targeting Computer 1583 | -7/Zion | Found Prototype Processor 1585 | -7/Zion | Found Prototype Processor 1589 | -7/Zion | Found Exp. Signal Interpreter 1617 | -7/Zion | Build established: Scavenger-Mutant 1627 | -7/Zion | System corruption cleaned by Quarantine Array 1737 | -7/Zion | Gained Derelict followers 1770 | -7/Zion | Learned location of Warlord (-5) 1790 | -7/Zion | Given A8's code to call for help 1972 | -7/Zion | Acquired unknown access codes intercepted by a Zionite 2117 | -7/Zion | Received a hallucinogenic algorithm 2256 | -7/Zion | Imprinted 2258 | -7/Zion | Declared Zion's savior 2409 | -7/Zion | Identified exit to Proximity Caves 2494 | -7/Zion | Entered Proximity Caves 2494 | -6/Proximity Caves | Accompanied by 5 allies 2698 | -6/Proximity Caves | Lost 3 parts (3n) 2931 | -6/Proximity Caves | Discovered new exit (range 9) 2956 | -6/Proximity Caves | Identified exit to Factory 2958 | -6/Proximity Caves | Entered Factory 2958 | -6/Factory | Accompanied by 2 allies 2958 | -6/Factory | Evolved 6 slots: Propulsion x2, Utility x4 3110 | -6/Factory | Fabricated Mak. Hover Unit? 3311 | -6/Factory | Retrieved Zion intel report: Main Access 3311 | -6/Factory | Identified exit to Factory 3329 | -6/Factory | Discovered new exit (range 10) 3368 | -6/Factory | Build established: Mutant 3376 | -6/Factory | Identified exit to Extension 3377 | -6/Factory | Entered Extension 3575 | -6/Extension | Lost 3 parts (1p1n1w) 3723 | -6/Extension | Zion Recon squad teleported in 3826 | -6/Extension | Rescued a captive Derelict 3863 | -6/Extension | Energy Cycler disabled 3863 | -6/Extension | Rescued a captive Derelict 3863 | -6/Extension | Rescued a captive Derelict 3864 | -6/Extension | Rescued a captive Derelict 3864 | -6/Extension | Rescued a captive Derelict 3865 | -6/Extension | Rescued a captive Derelict 3865 | -6/Extension | Rescued a captive Derelict 3866 | -6/Extension | Rescued a captive Derelict 3869 | -6/Extension | Rescued a captive Derelict 3873 | -6/Extension | Rescued a captive Derelict 3983 | -6/Extension | Spotted B-75 Beast 3996 | -6/Extension | Spotted B-75 Beast 4004 | -6/Extension | Allies destroyed B-75 Beast 4015 | -6/Extension | Rescued A7 4018 | -6/Extension | Discovered exit to Factory (range 15) 4151 | -6/Extension | Build established: Scavenger-Mutant 4166 | -6/Extension | Zion Explosive Resupply teleported in 4250 | -6/Extension | Discovered exit to Factory (range 10) 4251 | -6/Extension | Discovered new exit (range 6) 4259 | -6/Extension | Identified exit to Cetus 4289 | -6/Extension | Disrupted transfer network 4289 | -6/Extension | Entered Cetus 4289 | -6/Cetus | Accompanied by 8 allies (A7) 4294 | -6/Cetus | Acquired a Cetus Manufacturing Module code from A7 4308 | -6/Cetus | Spotted Cetus Guard 4308 | -6/Cetus | Spotted Cetus Guard 4311 | -6/Cetus | Spotted Cetus Guard 4312 | -6/Cetus | Spotted Cetus Guard 4318 | -6/Cetus | Allies destroyed Cetus Guard 4325 | -6/Cetus | Allies destroyed Cetus Guard 4329 | -6/Cetus | Allies destroyed Cetus Guard 4332 | -6/Cetus | Allies destroyed Cetus Guard 4384 | -6/Cetus | Started Cetus Manufacturing Module 4409 | -6/Cetus | Manufactured an Enhanced Grunt 4412 | -6/Cetus | Discovered new exit (range 16) 4434 | -6/Cetus | Manufactured an Enhanced Grunt 4456 | -6/Cetus | Spotted Cetus Guard 4457 | -6/Cetus | Spotted Cetus Guard 4459 | -6/Cetus | Manufactured an Enhanced Grunt 4464 | -6/Cetus | Spotted Cetus Guard 4468 | -6/Cetus | Allies destroyed Cetus Guard 4468 | -6/Cetus | Allies destroyed Cetus Guard 4468 | -6/Cetus | Spotted Cetus Guard 4483 | -6/Cetus | Allies destroyed Cetus Guard 4484 | -6/Cetus | Manufactured an Enhanced Grunt 4491 | -6/Cetus | Destroyed Cetus Guard 4493 | -6/Cetus | Extracted ID and sensor layout for unrecognized location from A7's data core 4501 | -6/Cetus | Found Prototype Device 4501 | -6/Cetus | Identified Exp. Thermal Shield 4504 | -6/Cetus | Discovered exit to Factory (range 15) 4509 | -6/Cetus | Manufactured an Enhanced Grunt 4510 | -6/Cetus | Scared off Revision 17 4598 | -6/Cetus | Identified exit to Archives 4605 | -6/Cetus | Entered Archives 4605 | -6/Archives | Accompanied by 2 allies 4677 | -6/Archives | Discovered new exit (range 16) 4697 | -6/Archives | Discovered new exit (range 13) 4716 | -6/Archives | Identified exit to Hub_04(d) 4722 | -6/Archives | Entered Hub_04(d) 4722 | -6/Hub_04(d) | Accompanied by 2 allies 4772 | -6/Hub_04(d) | Zion Heavy squad teleported in 4780 | -6/Hub_04(d) | Discovered exit to Factory (range 18) 4834 | -6/Hub_04(d) | Zion Recon squad teleported in 4990 | -6/Hub_04(d) | Network Hub disabled 4994 | -6/Hub_04(d) | Entered Factory 4994 | -5/Factory | Accompanied by 2 allies 4994 | -5/Factory | Evolved 2 slots: Propulsion x1, Utility x1 5137 | -5/Factory | Found Exp. Thermal Shield 5239 | -5/Factory | Retrieved Zion intel report: Depthwide Sectors/-1 5240 | -5/Factory | Zion Fire squad teleported in 5291 | -5/Factory | Zion Hacker squad teleported in 5336 | -5/Factory | Identified Exp. Terrain Scan Processor 5351 | -5/Factory | Identified Exp. Armor Integrity Analyzer 5445 | -5/Factory | Discovered new exit (range 10) 5462 | -5/Factory | Identified exit to Factory 5500 | -5/Factory | Zion Explosive Resupply teleported in 5930 | -5/Factory | Discovered exit to Factory (range 63) 5972 | -5/Factory | Zion Light squad teleported in 5992 | -5/Factory | Zion Thermal Resupply teleported in 6066 | -5/Factory | P-70 Sage assimilated allied 2Q-4YS(A) 6135 | -5/Factory | Found Prototype Protection 6135 | -5/Factory | Identified Zio. Weapon Casing 6139 | -5/Factory | Destroyed 9 combat bots 6156 | -5/Factory | Found Exp. Thermal Shield 6282 | -5/Factory | Discovered new exit (range 34) 6359 | -5/Factory | Identified exit to Upper Caves 6494 | -5/Factory | First assault squad dispatched 6504 | -5/Factory | Entered Upper Caves 6736 | -5/Upper Caves | Learned 8 Factory zone layouts 6880 | -5/Upper Caves | Attracted the attention of an 0b10 checkpoint 7018 | -5/Upper Caves | Encountered a Warlord checkpoint 7018 | -5/Upper Caves | Discovered new exit (range 6) 7029 | -5/Upper Caves | Learned Factory emergency access door positions 7084 | -5/Upper Caves | Identified exit to Upper Caves 7085 | -5/Upper Caves | Entered another Upper Caves area 7130 | -5/Upper Caves | Discovered exit to Factory (range 17) 7145 | -5/Upper Caves | Encountered a Warlord checkpoint 7213 | -5/Upper Caves | Attracted the attention of an 0b10 outpost 7291 | -5/Upper Caves | Core integrity fell below 50% 7337 | -5/Upper Caves | Lost 7 parts (1p3n2u1w) 7505 | -5/Upper Caves | Lost 4 parts (2u2w) 7553 | -5/Upper Caves | Build established: Mutant 7740 | -5/Upper Caves | Attracted the attention of an 0b10 checkpoint 8102 | -5/Upper Caves | Attacked by a delusional Derelict stockpiling Unaware 8306 | -5/Upper Caves | Discovered new exit (range 6) 8319 | -5/Upper Caves | Identified exit to Warlord 8781 | -5/Upper Caves | Entered Warlord 8822 | -5/Warlord | System corruption cleaned by Quarantine Array 9106 | -5/Warlord | Visited the Vortex Lab 9122 | -5/Warlord | Warlord's base attacked by MAIN.C 9122 | -5/Warlord | Found Prototype Launcher 9122 | -5/Warlord | Identified Vortex Catalyst Activator 9125 | -5/Warlord | Found Prototype Energy Gun 9130 | -5/Warlord | Found Prototype Energy Gun 9176 | -5/Warlord | Found Prototype Device 9176 | -5/Warlord | Identified Minesniffer Drone Bay 9251 | -5/Warlord | Rebuked by Warlord 9274 | -5/Warlord | Identified Vortex Rail (x2) 9311 | -5/Warlord | Found Prototype Device 9311 | -5/Warlord | Identified System Purifier 9323 | -5/Warlord | Found Prototype Device 9323 | -5/Warlord | Identified Exp. Phase Shifter 9331 | -5/Warlord | Found Prototype Reactor 9340 | -5/Warlord | Found Exp. Core Analyzer 9360 | -5/Warlord | Build established: Commander-Mutant 9472 | -5/Warlord | Warlord forces counterattacked 9511 | -5/Warlord | Spotted Striker 9547 | -5/Warlord | Spotted B-86 Titan 9553 | -5/Warlord | Spotted B-75 Beast 9556 | -5/Warlord | Spotted Striker 9564 | -5/Warlord | Core integrity fell below 20% 9565 | -5/Warlord | Spotted Striker 9599 | -5/Warlord | Discovered new exit (range 14) 9622 | -5/Warlord | Spotted Striker 9622 | -5/Warlord | Spotted Striker 9623 | -5/Warlord | Entered Proximity Caves 9720 | -4/Proximity Caves | Attracted the attention of an 0b10 checkpoint 9725 | -4/Proximity Caves | Destroyed by Y-64 Sentinel with Wave Gun Last Messages --------------- 09653_ P-70 Sage destroyed. 09655_ Vortex penetrates P-70 Sage. 09655_ P-70 Sage destroyed. 09662_ Antigrav System fries itself beyond repair. 09708_ Vortex penetrates Wall. 09717_ Vortex penetrates S-27 Virus. 09717_ S-27 Virus destroyed. 09717_ Vortex penetrates Wall. 09719_ Vortex penetrates G-67 Veteran. 09719_ Destroyed Field Laser. 09719_ Entropic reaction triggered in Lgt. Antimatter Reactor. 09719_ G-67 Veteran destroyed. 09719_ Vortex penetrates Earth. 09719_ Slug penetrates Wall. 09720_ Y-64 Sentinel: "INTERCEPTING UNREGISTERED DERELICT." 09721_ Vortex penetrates Y-64 Sentinel. 09721_ Vortex penetrates Wall. 09722_ Penetrated by Slug. 09723_ Vortex penetrates Y-64 Sentinel. 09723_ Vortex penetrates Wall. Map ----- +----------------------------------------------------+ | ?????????????????????????????????????????????????? | | ?????????????????????????????????????????????????? | | ?????????????????????????????????????????????????? | | ?????????????????????????????????????????????????? | | ?????????????????????????????????????????????????? | | ?????????????????????????????????????????????????? | | ?????????????????????????????????????????????????? | | ?????????????????????????????????????????????????? | | ?????????????????????????????????????????????????? | | ?????????????????????????????????????????????????? | | ?????????????????????????????????????????????????? | | ?????????????????????????#???????????????????????? | | ???????????????????# ???? ????? ???????????????? | | ???????????????????# ????;????? ????????????? | | ?????????????? ???## ????;???? ????????????? | | ??????????????? ?## ??? ???# ???????????? | | ???????????????? # ??? ??? ????????????? | | ????????????????#; ??#;#? ??????????????? | | ???????????????## #?# #? ????????????????? | | ???????????????# ##;## ??????????????????? | | ?????????????????? % ???????????????????? | | ????????????????????# Y ????????????????????? | | ????????????????????# ; ?????????????????????? | | ????????????????????# ! #?????????????????????? | | ????????????????????#; %;;#?????????????????????? | | ????????????????????#; [@;#?????????????????????? | | ???????????????????##; ;#????????????????????? | | ???????????????????# ##????????????????????? | | ???????????????????#### ##???? ???????????? | | ??????????????????????## ## #?????????? | | ?????????????????????### #???????????? | | ?????????????????????# #???????????? | | ?????????????????????# ; ### ""?????????? | | ??????????????###??### ###; #"## "?????????? | | ?????????????## ### ###; ??????????? | | ?????????????# ;#;## ?????????? | | ?????????????# ; "" ??????????? | | ?????????????# ;;" #??????????? | | ?????????????# ###" % ##?#???????????? | | ?????????????## #?## % ##??????????????? | | ??????????????## ###" " "#???????????????? | | ???????????????# % #####???????????????? | | ???????????????# #???????????????????? | | ???????????????## #???????????????????? | | ????????????????## "" ##???????????????????? | | ?????????????????## ####???????????????????? | | ??????????????????# #???????????????????? | | ??????????????????## #???????????????????? | | ???????????????????###########???????????????????? | | ?????????????????????????????????????????????????? | +----------------------------------------------------+ Best States ------------- Heat Dissipation 40 Coolant Potential 120 Energy Generation 25 Energy Capacity 850 Matter Stores 300 Matter Capacity 300 Sight Range 16 Terrain Scan Range 20 Terrain Scan Density 210 Jamming Range 14 Armor Coverage 900 Resistance: TH 30 Weapon Shielding 100 Phase Shifting 20 Evasion (%) 60 Targeting Accuracy 20 Core Analysis 8 Recoil Reduction 6 Particle Charging 25 Offensive Hacking 14 Defensive Hacking 14 Item Schematics ----------------- Ripper | -7/Zion | Archive Plasma Rifle | -7/Zion | Archive Adv. ECM Suite | -7/Zion | Archive Imp. Reaction Control System | -7/Zion | Archive Hvy. Missile Launcher | -7/Zion | Archive Mak. Hover Unit | -7/Zion | Archive Great Axe | -7/Zion | Archive Adv. Shield Generator | -7/Zion | Archive Imp. Kinecellerator | -7/Zion | Archive Hvy. Ion Cannon | -7/Zion | Archive Hvy. Machine Gun | -7/Zion | Archive Proton Cannon | -7/Zion | Archive Mak. System Shield | -7/Zion | Archive Hpw. Shock Rifle | -7/Zion | Archive Remote Datajack | -7/Zion | Archive HERF Cannon | -7/Zion | Archive Robot Schematics ------------------ M-14 Sweeper | -7/Zion | Archive L-31 Rogue | -7/Zion | Archive L-41 Fighter | -7/Zion | Archive Fabricated ------------ Mak. Hover Unit | x2 | -6/Factory Alien Tech Used ----------------- None Achievements -------------- None Challenges ------------ None Game ------ Seed ControlSuspensionAirjet Manual? 0 Play Time 02:45:28 Cumulative 405.6 hours Start 2023.03.26 @ 10:12:19 End 2023.03.26 @ 19:27:13 Sessions 1 Manual Loads 0 Difficulty Rogue Special Mode None Game No. 192 Rogue 188 Adventurer 0 Explorer 4 Win Type - Total 23 Types 7/1/2/5/1/2/3/1/1 Lore% 85 Gallery% 88 Achievement% 79 Wizard Run 0 Options --------- ASCII 0 Keyboard 0 Movement Mouse Keybinds 0 Fullscreen 1 Font 18/SmallcapsGlow Map View 76x50 Tactical HUD 1 Map Filters NONE Filters NONE Steam 1 RUN: 5ffd4cba-6bcd-4707-9403-486fa95fbba4